fUSD/lending_fUSD_20260614
["ID","MTS","AMOUNT","RATE_DAILY","PERIOD"]
[425059308,1781447537000,-502.0,0.00030136,8]
[425059341,1781447537000,-842.22,0.00030136,8]
[425059340,1781447537000,-1157.66,0.00030136,8]
[425059352,1781447537000,-500.0,0.00030136,8]
[425059334,1781447537000,-983.50192,0.00030136,7]
[425059316,1781447537000,-500.0,0.00030136,8]
[425059337,1781447537000,-550.82,0.00030136,8]
[425059306,1781447537000,-500.0,0.00030136,8]
[425059312,1781447537000,-682.04,0.00030136,8]
[425059315,1781447537000,-320.30514,0.00030136,7]
[425059314,1781447537000,-983.50192,0.00030136,7]
[425059313,1781447537000,-320.30514,0.00030136,7]
[425059330,1781447537000,-623.6,0.00030136,8]
[425059329,1781447537000,-580.54,0.00030136,8]
[425059318,1781447537000,-983.50192,0.00030136,7]
[425059320,1781447537000,-983.50192,0.00030136,7]
[425059321,1781447537000,-500.0,0.00030136,8]
[425059319,1781447537000,-320.305147,0.00030136,7]
[425059338,1781447537000,-983.501912,0.00030136,7]
[425059333,1781447537000,-983.50192,0.00030136,7]
[425059322,1781447537000,-983.50192,0.00030136,7]
[425059335,1781447537000,-983.50192,0.00030136,7]
[425059332,1781447537000,-983.50192,0.00030136,7]
[425059326,1781447537000,-983.50192,0.00030136,7]
[425059331,1781447537000,-983.50192,0.00030136,7]
[425059328,1781447537000,-983.50192,0.00030136,7]
[425059327,1781447537000,-2017.64,0.00030136,8]
[425059324,1781447537000,-500.0,0.00030136,8]
[425059323,1781447537000,-966.37,0.00030136,8]
[425059325,1781447537000,-2663.08,0.00030136,8]
[425059396,1781447538000,-500.0,0.00030136,8]
[425059395,1781447538000,-500.0,0.00030136,8]
[425059402,1781447538000,-500.0,0.00030136,8]
[425059398,1781447538000,-151.252358,0.00030136,7]
[425059400,1781447538000,-500.0,0.00030136,8]
[425059387,1781447538000,-728.612861,0.00030136,7]
[425059393,1781447538000,-4182.59,0.00030136,8]
[425059394,1781447538000,-702.05,0.00030136,8]
[425059391,1781447538000,-386.85278364,0.00030136,8]
[425059401,1781447538000,-2931.64,0.00030136,8]
[425059397,1781447538000,-3026.85,0.00030136,8]
[425059399,1781447538000,-500.0,0.00030136,8]
[425059413,1781447538000,-500.0,0.00030136,8]
[425059405,1781447538000,-151.0,0.00030136,7]
[425059404,1781447538000,-742.57,0.00030136,8]
[425059407,1781447538000,-528.8,0.00030136,8]
[425059406,1781447538000,-3706.06,0.00030136,8]
[425059409,1781447538000,-158.358052,0.00030136,7]
[425059411,1781447538000,-518.74,0.00030136,8]
[425059408,1781447538000,-151.0,0.00030136,7]
[425059410,1781447538000,-500.0,0.00030136,8]
[425059414,1781447538000,-1682.54,0.00030136,8]
[425059412,1781447538000,-658.84,0.00030136,8]
[425059390,1781447538000,-1082.98,0.00030136,8]
[425059403,1781447538000,-500.0,0.00030136,8]
[425059388,1781447538000,-728.612864,0.00030136,7]
[425059364,1781447538000,-10759.52,0.00030136,8]
[425059386,1781447538000,-728.612861,0.00030136,7]
[425059363,1781447538000,-728.612861,0.00030136,7]
[425059369,1781447538000,-679.83,0.00030136,8]
[425059370,1781447538000,-728.612861,0.00030136,7]
[425059368,1781447538000,-500.0,0.00030136,8]
[425059365,1781447538000,-728.612861,0.00030136,7]
[425059366,1781447538000,-728.612861,0.00030136,7]
[425059367,1781447538000,-728.612861,0.00030136,7]
[425059415,1781447538000,-500.0,0.00030136,8]
[425059371,1781447538000,-1143.85,0.00030136,8]
[425059372,1781447538000,-728.612861,0.00030136,7]
[425059374,1781447538000,-728.612861,0.00030136,7]
[425059389,1781447538000,-704.65,0.00030136,8]
[425059373,1781447538000,-500.0,0.00030136,8]
[425059381,1781447538000,-500.0,0.00030136,8]
[425059380,1781447538000,-825.79,0.00030136,8]
[425059378,1781447538000,-728.612861,0.00030136,7]
[425059379,1781447538000,-1116.26,0.00030136,8]
[425059377,1781447538000,-500.0,0.00030136,8]
[425059376,1781447538000,-728.612861,0.00030136,7]
[425059383,1781447538000,-626.04,0.00030136,8]
[425059382,1781447538000,-728.612861,0.00030136,7]
[425059384,1781447538000,-728.612861,0.00030136,7]
[425059385,1781447538000,-728.612861,0.00030136,7]
[425059392,1781447538000,-500.0,0.00030136,8]
[425059375,1781447538000,-728.612861,0.00030136,7]
[425059417,1781447538000,-1282.28,0.00030136,8]
[425059469,1781447538000,-1801.16,0.00030136,8]
[425059421,1781447538000,-1109.22,0.00030136,8]
[425059445,1781447538000,-2139.126436,0.00030136,7]
[425059450,1781447538000,-25282.9,0.00030136,8]
[425059460,1781447538000,-889.582572,0.00030136,7]
[425059449,1781447538000,-500.0,0.00030136,8]
[425059451,1781447538000,-505.16,0.00030136,8]
[425059454,1781447538000,-500.0,0.00030136,8]
[425059452,1781447538000,-677.78,0.00030136,8]
[425059453,1781447538000,-500.0,0.00030136,8]
[425059455,1781447538000,-500.0,0.00030136,8]
[425059457,1781447538000,-2026.58,0.00030136,8]
[425059456,1781447538000,-350.0,0.00030136,8]
[425059440,1781447538000,-2139.126436,0.00030136,7]
[425059458,1781447538000,-589.03,0.00030136,8]
[425059463,1781447538000,-2890.54,0.00030136,8]
[425059461,1781447538000,-557.28,0.00030136,8]
[425059467,1781447538000,-889.582572,0.00030136,7]
[425059464,1781447538000,-889.582572,0.00030136,7]
[425059471,1781447538000,-889.582572,0.00030136,7]
[425059470,1781447538000,-889.582572,0.00030136,7]
[425059465,1781447538000,-889.582572,0.00030136,7]
[425059466,1781447538000,-889.582572,0.00030136,7]
[425059468,1781447538000,-889.582572,0.00030136,7]
[425059472,1781447538000,-889.582572,0.00030136,7]
[425059416,1781447538000,-610.83,0.00030136,8]
[425059462,1781447538000,-889.582572,0.00030136,7]
[425059448,1781447538000,-563.46,0.00030136,8]
[425059459,1781447538000,-1296.71,0.00030136,8]
[425059447,1781447538000,-2139.12644,0.00030136,7]
[425059441,1781447538000,-2139.126436,0.00030136,7]
[425059420,1781447538000,-540.32,0.00030136,8]
[425059422,1781447538000,-4001.43,0.00030136,8]
[425059418,1781447538000,-528.7,0.00030136,8]
[425059423,1781447538000,-1749.66,0.00030136,8]
[425059419,1781447538000,-636.66,0.00030136,8]
[425059425,1781447538000,-2139.126436,0.00030136,7]
[425059424,1781447538000,-2139.126436,0.00030136,7]
[425059429,1781447538000,-2139.126436,0.00030136,7]
[425059437,1781447538000,-2139.126436,0.00030136,7]
[425059430,1781447538000,-508.2,0.00030136,8]
[425059428,1781447538000,-2139.126436,0.00030136,7]
[425059426,1781447538000,-2139.126436,0.00030136,7]
[425059427,1781447538000,-1000.0,0.00030136,8]
[425059431,1781447538000,-2139.126436,0.00030136,7]
[425059443,1781447538000,-2139.126436,0.00030136,7]
[425059446,1781447538000,-11664.09,0.00030136,8]
[425059442,1781447538000,-2139.126436,0.00030136,7]
[425059444,1781447538000,-500.0,0.00030136,8]
[425059438,1781447538000,-2139.126436,0.00030136,7]
[425059439,1781447538000,-1278.35,0.00030136,8]
[425059436,1781447538000,-2139.126436,0.00030136,7]
[425059433,1781447538000,-1407.31,0.00030136,8]
[425059432,1781447538000,-1023.6,0.00030136,8]
[425059434,1781447538000,-2139.126436,0.00030136,7]
[425059435,1781447538000,-500.0,0.00030136,8]
[425059518,1781447539000,-707.83,0.00030136,8]
[425059511,1781447539000,-500.0,0.00030136,8]
[425059514,1781447539000,-529.83,0.00030136,8]
[425059513,1781447539000,-500.0,0.00030136,8]
[425059517,1781447539000,-839.66,0.00030136,8]
[425059510,1781447539000,-1129.02,0.00030136,2]
[425059509,1781447539000,-1357.49,0.00030136,8]
[425059507,1781447539000,-2020.73,0.00030136,8]
[425059502,1781447539000,-605.58,0.00030136,8]
[425059501,1781447539000,-1440.23,0.00030136,8]
[425059508,1781447539000,-500.0,0.00030136,8]
[425059512,1781447539000,-878.66,0.00030136,8]
[425059515,1781447539000,-500.0,0.00030136,8]
[425059526,1781447539000,-2061.13,0.00030136,8]
[425059520,1781447539000,-616.75601781,0.00030136,8]
[425059532,1781447539000,-1326.3,0.00030136,8]
[425059530,1781447539000,-500.0,0.00030136,8]
[425059531,1781447539000,-1057.08,0.00030136,8]
[425059522,1781447539000,-12728.02,0.00030136,8]
[425059519,1781447539000,-900.28,0.00030136,8]
[425059521,1781447539000,-822.75,0.00030136,8]
[425059524,1781447539000,-500.0,0.00030136,8]
[425059525,1781447539000,-500.0,0.00030136,8]
[425059527,1781447539000,-500.0,0.00030136,8]
[425059523,1781447539000,-500.0,0.00030136,8]
[425059529,1781447539000,-649.93,0.00030136,8]
[425059504,1781447539000,-1108.18,0.00030136,8]
[425059516,1781447539000,-500.0,0.00030136,8]
[425059503,1781447539000,-500.0,0.00030136,8]
[425059476,1781447539000,-889.582572,0.00030136,7]
[425059499,1781447539000,-2562.95,0.00030136,8]
[425059474,1781447539000,-889.582572,0.00030136,7]
[425059473,1781447539000,-889.582572,0.00030136,7]
[425059528,1781447539000,-1297.07,0.00030136,8]
[425059477,1781447539000,-500.0,0.00030136,8]
[425059479,1781447539000,-889.582576,0.00030136,7]
[425059482,1781447539000,-1343.56,0.00030136,8]
[425059478,1781447539000,-889.582572,0.00030136,7]
[425059483,1781447539000,-1463.18,0.00030136,8]
[425059481,1781447539000,-500.0,0.00030136,8]
[425059480,1781447539000,-1828.15,0.00030136,8]
[425059485,1781447539000,-595.31,0.00030136,8]
[425059484,1781447539000,-1214.13,0.00030136,8]
[425059489,1781447539000,-500.0,0.00030136,8]
[425059495,1781447539000,-1090.91,0.00030136,8]
[425059493,1781447539000,-5973.16,0.00030136,8]
[425059491,1781447539000,-1413.1,0.00030136,8]
[425059494,1781447539000,-763.45,0.00030136,8]
[425059492,1781447539000,-500.0,0.00030136,8]
[425059486,1781447539000,-500.0,0.00030136,8]
[425059488,1781447539000,-500.0,0.00030136,8]
[425059487,1781447539000,-1866.64,0.00030136,8]
[425059490,1781447539000,-577.98,0.00030136,8]
[425059496,1781447539000,-500.0,0.00030136,8]
[425059505,1781447539000,-500.0,0.00030136,8]
[425059506,1781447539000,-500.0,0.00030136,8]
[425059497,1781447539000,-3655.13,0.00030136,8]
[425059498,1781447539000,-3216.2,0.00030136,8]
[425059500,1781447539000,-500.0,0.00030136,8]
[425059542,1781447539000,-668.253793,0.00030136,7]
[425059475,1781447539000,-889.582572,0.00030136,7]
[425059543,1781447539000,-668.253793,0.00030136,7]
[425059567,1781447539000,-1133.48,0.00030136,8]
[425059563,1781447539000,-151.0,0.00030136,7]
[425059564,1781447539000,-500.0,0.00030136,8]
[425059566,1781447539000,-668.253793,0.00030136,7]
[425059581,1781447539000,-700.785826,0.00030136,7]
[425059583,1781447539000,-700.785826,0.00030136,7]
[425059582,1781447539000,-837.18,0.00030136,8]
[425059572,1781447539000,-668.253793,0.00030136,7]
[425059577,1781447539000,-500.0,0.00030136,8]
[425059574,1781447539000,-668.253801,0.00030136,7]
[425059575,1781447539000,-500.0,0.00030136,8]
[425059573,1781447539000,-236.705512,0.00030136,7]
[425059580,1781447539000,-700.785826,0.00030136,7]
[425059571,1781447539000,-922.21,0.00030136,8]
[425059578,1781447539000,-197.86323425,0.00030136,8]
[425059584,1781447539000,-500.0,0.00030136,8]
[425059586,1781447539000,-700.785826,0.00030136,7]
[425059589,1781447539000,-5871.97,0.00030136,8]
[425059587,1781447539000,-700.785826,0.00030136,7]
[425059590,1781447539000,-700.785826,0.00030136,7]
[425059588,1781447539000,-700.785826,0.00030136,7]
[425059592,1781447539000,-700.785826,0.00030136,7]
[425059595,1781447539000,-500.0,0.00030136,8]
[425059593,1781447539000,-500.0,0.00030136,8]
[425059591,1781447539000,-1698.66,0.00030136,8]
[425059594,1781447539000,-700.785826,0.00030136,7]
[425059585,1781447539000,-741.37,0.00030136,8]
[425059545,1781447539000,-668.253793,0.00030136,7]
[425059579,1781447539000,-700.785826,0.00030136,7]
[425059562,1781447539000,-500.0,0.00030136,8]
[425059576,1781447539000,-500.0,0.00030136,8]
[425059568,1781447539000,-151.0,0.00030136,7]
[425059535,1781447539000,-640.65,0.00030136,8]
[425059561,1781447539000,-668.253793,0.00030136,7]
[425059539,1781447539000,-955.12,0.00030136,8]
[425059541,1781447539000,-577.21,0.00030136,8]
[425059534,1781447539000,-707.22,0.00030136,8]
[425059533,1781447539000,-500.0,0.00030136,8]
[425059544,1781447539000,-500.0,0.00030136,8]
[425059540,1781447539000,-861.57,0.00030136,8]
[425059538,1781447539000,-1648.13,0.00030136,8]
[425059537,1781447539000,-5289.14,0.00030136,8]
[425059547,1781447539000,-500.0,0.00030136,8]
[425059557,1781447539000,-668.253793,0.00030136,7]
[425059558,1781447539000,-921.05,0.00030136,8]
[425059546,1781447539000,-668.253793,0.00030136,7]
[425059536,1781447539000,-1599.83,0.00030136,8]
[425059550,1781447539000,-2104.15,0.00030136,8]
[425059569,1781447539000,-668.253793,0.00030136,7]
[425059548,1781447539000,-668.253793,0.00030136,7]
[425059565,1781447539000,-500.0,0.00030136,8]
[425059560,1781447539000,-668.253793,0.00030136,7]
[425059559,1781447539000,-668.253793,0.00030136,7]
[425059552,1781447539000,-668.253793,0.00030136,7]
[425059555,1781447539000,-668.253793,0.00030136,7]
[425059570,1781447539000,-151.0,0.00030136,7]
[425059551,1781447539000,-1609.77,0.00030136,8]
[425059556,1781447539000,-500.0,0.00030136,8]
[425059554,1781447539000,-500.0,0.00030136,8]
[425059549,1781447539000,-668.253793,0.00030136,7]
[425059553,1781447539000,-800.7,0.00030136,8]
[425059641,1781447540000,-1938.74702844,0.0003014,4]
[425059642,1781447540000,-1938.74702844,0.0003014,4]
[425059639,1781447540000,-6158.43527629,0.0003014,4]
[425059640,1781447540000,-1938.74702844,0.0003014,4]
[425059635,1781447540000,-6158.43527629,0.0003014,4]
[425059625,1781447540000,-6158.43527629,0.0003014,4]
[425059631,1781447540000,-6158.43527629,0.0003014,4]
[425059630,1781447540000,-6158.43527629,0.0003014,4]
[425059627,1781447540000,-6158.43527629,0.0003014,4]
[425059623,1781447540000,-6158.43527629,0.0003014,4]
[425059629,1781447540000,-6158.43527629,0.0003014,4]
[425059636,1781447540000,-6158.43527629,0.0003014,4]
[425059637,1781447540000,-6158.43527629,0.0003014,4]
[425059638,1781447540000,-6158.43527629,0.0003014,4]
[425059655,1781447540000,-1938.74702844,0.0003014,4]
[425059643,1781447540000,-1938.74702844,0.0003014,4]
[425059644,1781447540000,-1938.74702844,0.0003014,4]
[425059645,1781447540000,-1938.74702844,0.0003014,4]
[425059647,1781447540000,-1938.74702844,0.0003014,4]
[425059649,1781447540000,-1938.74702844,0.0003014,4]
[425059650,1781447540000,-1938.74702844,0.0003014,4]
[425059660,1781447540000,-3167.10424089,0.0003014,4]
[425059648,1781447540000,-1938.74702844,0.0003014,4]
[425059661,1781447540000,-3167.10424089,0.0003014,4]
[425059659,1781447540000,-3167.10424089,0.0003014,4]
[425059652,1781447540000,-1938.74702844,0.0003014,4]
[425059656,1781447540000,-1938.74702844,0.0003014,4]
[425059626,1781447540000,-6158.43527629,0.0003014,4]
[425059646,1781447540000,-1938.74702844,0.0003014,4]
[425059628,1781447540000,-6158.43527629,0.0003014,4]
[425059598,1781447540000,-1401.83,0.00030136,8]
[425059633,1781447540000,-6158.43527629,0.0003014,4]
[425059596,1781447540000,-700.785826,0.00030136,7]
[425059657,1781447540000,-1938.74702844,0.0003014,4]
[425059608,1781447540000,-582.31,0.00030137,2]
[425059609,1781447540000,-1505.03,0.00030137,2]
[425059605,1781447540000,-1106.5,0.00030136,8]
[425059603,1781447540000,-862.64,0.00030136,8]
[425059601,1781447540000,-700.785826,0.00030136,7]
[425059597,1781447540000,-700.785826,0.00030136,7]
[425059600,1781447540000,-1434.77,0.00030136,8]
[425059602,1781447540000,-700.785826,0.00030136,7]
[425059604,1781447540000,-700.785825,0.00030136,7]
[425059599,1781447540000,-700.785826,0.00030136,7]
[425059607,1781447540000,-139208.88495148,0.00030137,7]
[425059606,1781447540000,-169944.5066253,0.00030137,7]
[425059610,1781447540000,-247.5172805,0.00030137,7]
[425059616,1781447540000,-500.0,0.00030137,3]
[425059620,1781447540000,-503.24,0.00030137,7]
[425059617,1781447540000,-150.0,0.00030137,30]
[425059613,1781447540000,-274.91679091,0.00030137,40]
[425059621,1781447540000,-6158.43527629,0.0003014,4]
[425059615,1781447540000,-500.0,0.00030137,3]
[425059622,1781447540000,-6158.43527629,0.0003014,4]
[425059619,1781447540000,-152.08976612,0.00030137,5]
[425059618,1781447540000,-2500.0,0.00030137,120]
[425059612,1781447540000,-1505.03,0.00030137,2]
[425059614,1781447540000,-500.0,0.00030137,3]
[425059611,1781447540000,-495.03456101,0.00030137,7]
[425059624,1781447540000,-6158.43527629,0.0003014,4]
[425059632,1781447540000,-6158.43527629,0.0003014,4]
[425059634,1781447540000,-6158.43527629,0.0003014,4]
[425059651,1781447540000,-1938.74702844,0.0003014,4]
[425059674,1781447540000,-3167.10424089,0.0003014,4]
[425059654,1781447540000,-1938.74702844,0.0003014,4]
[425059692,1781447540000,-1052.38002489,0.00030241,8]
[425059700,1781447540000,-2500.0,0.0003025,2]
[425059699,1781447540000,-13465.9,0.0003025,2]
[425059695,1781447540000,-616.54,0.0003025,2]
[425059694,1781447540000,-2500.0,0.0003025,2]
[425059696,1781447540000,-16674.47,0.0003025,2]
[425059702,1781447540000,-2500.0,0.0003025,2]
[425059701,1781447540000,-22500.0,0.0003025,2]
[425059713,1781447540000,-905.8361297,0.00030355,7]
[425059712,1781447540000,-921.44711629,0.00030355,7]
[425059704,1781447540000,-25000.0,0.0003025,2]
[425059703,1781447540000,-2499.99,0.0003025,2]
[425059705,1781447540000,-2500.0,0.0003025,2]
[425059693,1781447540000,-1017.70717139,0.00030241,8]
[425059706,1781447540000,-12500.0,0.0003025,2]
[425059710,1781447540000,-849.98595368,0.00030342,7]
[425059707,1781447540000,-22500.0,0.0003025,2]
[425059711,1781447540000,-482.61703337,0.00030346,7]
[425059653,1781447540000,-1938.74702844,0.0003014,4]
[425059714,1781447540000,-972.9013272,0.00030355,7]
[425059718,1781447540000,-298.8808056,0.00030358,120]
[425059716,1781447540000,-803.87691646,0.00030355,7]
[425059719,1781447540000,-22500.0,0.00030375,2]
[425059715,1781447540000,-954.1915408,0.00030355,7]
[425059717,1781447540000,-837.85781904,0.00030355,7]
[425059722,1781447540000,-22500.0,0.00030375,2]
[425059720,1781447540000,-22500.0,0.00030375,2]
[425059721,1781447540000,-12500.0,0.00030375,2]
[425059708,1781447540000,-2499.97,0.0003025,2]
[425059697,1781447540000,-11959.93,0.0003025,2]
[425059709,1781447540000,-10000.0,0.00030333,2]
[425059689,1781447540000,-843.6,0.00030239,2]
[425059698,1781447540000,-22500.0,0.0003025,2]
[425059658,1781447540000,-1938.74702844,0.0003014,4]
[425059664,1781447540000,-3167.10424089,0.0003014,4]
[425059662,1781447540000,-3167.10424089,0.0003014,4]
[425059670,1781447540000,-3167.10424089,0.0003014,4]
[425059667,1781447540000,-3167.10424089,0.0003014,4]
[425059673,1781447540000,-3167.10424089,0.0003014,4]
[425059672,1781447540000,-3167.10424089,0.0003014,4]
[425059671,1781447540000,-3167.10424089,0.0003014,4]
[425059666,1781447540000,-3167.10424089,0.0003014,4]
[425059665,1781447540000,-3167.10424089,0.0003014,4]
[425059668,1781447540000,-3167.10424089,0.0003014,4]
[425059669,1781447540000,-3167.10424089,0.0003014,4]
[425059676,1781447540000,-3167.10424089,0.0003014,4]
[425059663,1781447540000,-3167.10424089,0.0003014,4]
[425059686,1781447540000,-601.37,0.000302,2]
[425059691,1781447540000,-1017.5700745,0.00030241,8]
[425059687,1781447540000,-176.83085671,0.00030218,2]
[425059690,1781447540000,-339.11168618,0.00030241,8]
[425059688,1781447540000,-1791.15813918,0.00030233,2]
[425059682,1781447540000,-3167.1,0.0003015,4]
[425059685,1781447540000,-601.37,0.000302,2]
[425059683,1781447540000,-17271.9954,0.00030173,28]
[425059684,1781447540000,-403.88,0.000302,2]
[425059681,1781447540000,-1938.74,0.0003015,4]
[425059678,1781447540000,-1791.15813918,0.00030141,2]
[425059677,1781447540000,-3167.10424089,0.0003014,4]
[425059675,1781447540000,-3167.10424089,0.0003014,4]
[425059680,1781447540000,-6158.43,0.0003015,4]
[425059679,1781447540000,-1175.98,0.00030148,2]
[425059745,1781447541000,-500.0,0.0003041,8]
[425059752,1781447541000,-500.0,0.0003041,8]
[425059750,1781447541000,-500.0,0.0003041,8]
[425059747,1781447541000,-552.72,0.0003041,8]
[425059746,1781447541000,-500.0,0.0003041,8]
[425059749,1781447541000,-542.62,0.0003041,8]
[425059751,1781447541000,-500.0,0.0003041,8]
[425059748,1781447541000,-1280.28,0.0003041,8]
[425059758,1781447541000,-500.0,0.0003041,8]
[425059760,1781447541000,-1300.69,0.0003041,8]
[425059754,1781447541000,-500.0,0.0003041,8]
[425059753,1781447541000,-500.0,0.0003041,8]
[425059756,1781447541000,-614.99,0.0003041,8]
[425059757,1781447541000,-736.33,0.0003041,8]
[425059759,1781447541000,-801.17,0.0003041,8]
[425059761,1781447541000,-1200.69,0.0003041,8]
[425059766,1781447541000,-738.99,0.0003041,8]
[425059744,1781447541000,-1526.43,0.0003041,8]
[425059755,1781447541000,-685.22,0.0003041,8]
[425059743,1781447541000,-925.25,0.0003041,8]
[425059738,1781447541000,-1013.37,0.0003041,8]
[425059742,1781447541000,-558.29,0.0003041,8]
[425059765,1781447541000,-500.0,0.0003041,8]
[425059723,1781447541000,-887.2335196,0.00030394,2]
[425059725,1781447541000,-667.37624602,0.00030409,8]
[425059724,1781447541000,-1734.52,0.00030397,2]
[425059726,1781447541000,-667.37624602,0.00030409,8]
[425059735,1781447541000,-510.86,0.0003041,8]
[425059737,1781447541000,-500.0,0.0003041,8]
[425059736,1781447541000,-500.0,0.0003041,8]
[425059741,1781447541000,-630.1,0.0003041,8]
[425059734,1781447541000,-500.0,0.0003041,8]
[425059731,1781447541000,-1290.4,0.0003041,8]
[425059732,1781447541000,-706.5,0.0003041,8]
[425059730,1781447541000,-569.09,0.0003041,8]
[425059729,1781447541000,-500.0,0.0003041,8]
[425059733,1781447541000,-957.59,0.0003041,8]
[425059728,1781447541000,-2287.07,0.0003041,8]
[425059739,1781447541000,-500.0,0.0003041,8]
[425059740,1781447541000,-512.97,0.0003041,8]
[425059727,1781447541000,-1928.24,0.0003041,8]
[425059764,1781447541000,-1573.21,0.0003041,8]
[425059794,1781447541000,-500.0,0.0003041,8]
[425059763,1781447541000,-1007.63,0.0003041,8]
[425059788,1781447541000,-1121.81,0.0003041,8]
[425059791,1781447541000,-800.55,0.0003041,8]
[425059787,1781447541000,-500.0,0.0003041,8]
[425059789,1781447541000,-1031.86,0.0003041,8]
[425059803,1781447541000,-500.0,0.0003041,8]
[425059796,1781447541000,-500.0,0.0003041,8]
[425059793,1781447541000,-546.49,0.0003041,8]
[425059795,1781447541000,-500.0,0.0003041,8]
[425059790,1781447541000,-648.16,0.0003041,8]
[425059797,1781447541000,-1400.43,0.0003041,8]
[425059800,1781447541000,-500.0,0.0003041,8]
[425059801,1781447541000,-500.0,0.0003041,8]
[425059802,1781447541000,-688.19,0.0003041,8]
[425059805,1781447541000,-216.53039042,0.0003041,8]
[425059806,1781447541000,-500.0,0.0003041,8]
[425059804,1781447541000,-500.0,0.0003041,8]
[425059807,1781447541000,-500.0,0.0003041,8]
[425059762,1781447541000,-985.3,0.0003041,8]
[425059799,1781447541000,-1274.35,0.0003041,8]
[425059786,1781447541000,-524.27,0.0003041,8]
[425059798,1781447541000,-500.0,0.0003041,8]
[425059785,1781447541000,-553.9,0.0003041,8]
[425059792,1781447541000,-682.21,0.0003041,8]
[425059767,1781447541000,-1067.78,0.0003041,8]
[425059768,1781447541000,-500.0,0.0003041,8]
[425059770,1781447541000,-700.76,0.0003041,8]
[425059769,1781447541000,-500.0,0.0003041,8]
[425059774,1781447541000,-508.34,0.0003041,8]
[425059773,1781447541000,-1224.99,0.0003041,8]
[425059772,1781447541000,-500.0,0.0003041,8]
[425059775,1781447541000,-1285.32,0.0003041,8]
[425059771,1781447541000,-500.0,0.0003041,8]
[425059777,1781447541000,-514.54,0.0003041,8]
[425059776,1781447541000,-500.0,0.0003041,8]
[425059778,1781447541000,-926.37,0.0003041,8]
[425059779,1781447541000,-578.78,0.0003041,8]
[425059780,1781447541000,-500.0,0.0003041,8]
[425059781,1781447541000,-951.06,0.0003041,8]
[425059784,1781447541000,-500.0,0.0003041,8]
[425059783,1781447541000,-500.0,0.0003041,8]
[425059782,1781447541000,-735.2,0.0003041,8]
[425059836,1781447542000,-500.0,0.0003041,8]
[425059847,1781447542000,-586.53,0.0003041,8]
[425059845,1781447542000,-508.13,0.0003041,8]
[425059838,1781447542000,-500.0,0.0003041,8]
[425059835,1781447542000,-1047.49,0.0003041,8]
[425059846,1781447542000,-1099.99,0.0003041,8]
[425059837,1781447542000,-500.0,0.0003041,8]
[425059833,1781447542000,-664.01,0.0003041,8]
[425059843,1781447542000,-766.55,0.0003041,8]
[425059839,1781447542000,-500.0,0.0003041,8]
[425059844,1781447542000,-500.0,0.0003041,8]
[425059849,1781447542000,-500.0,0.0003041,8]
[425059840,1781447542000,-1037.86,0.0003041,8]
[425059841,1781447542000,-773.85,0.0003041,8]
[425059848,1781447542000,-899.88,0.0003041,8]
[425059853,1781447542000,-1398.15,0.0003041,8]
[425059854,1781447542000,-520.02,0.0003041,8]
[425059858,1781447542000,-500.0,0.0003041,8]
[425059855,1781447542000,-841.95,0.0003041,8]
[425059850,1781447542000,-671.88,0.0003041,8]
[425059851,1781447542000,-1425.15,0.0003041,8]
[425059829,1781447542000,-500.0,0.0003041,8]
[425059842,1781447542000,-1207.41,0.0003041,8]
[425059830,1781447542000,-1604.32,0.0003041,8]
[425059811,1781447542000,-1222.28,0.0003041,8]